Cogmind - Beta 9.6 @@@ ROGUE MODE // 2020.07.10 @ 08:41:00 Player: GGOBC-006 Result: Smashed by cave-in Performance ------------- Evolutions (0) 0 Regions Visited (1) 200 Robots Destroyed (9) 45 Value Destroyed (80) 80 Prototype IDs (0) 0 Alien Tech Used (0) 0 Bonus (0) 0 TOTAL SCORE: 325 Bonus ------- None Cogmind --------- Core Integrity 0/250 Matter 300/300 Energy 60/100 System Corruption 19% Temperature Cool (232) Movement Rolling (80) Location -10/Materials Parts ------- > --- POWER (1) -------- (None) > --- PROPULSION (2) --- Wheel > --- UTILITY (2) ------ (None) > --- WEAPON (2) ------- (None) > --- INVENTORY (4) ---- Light Ion Engine Grenade Launcher Mining Laser Peak State ------------ > --- POWER ------------ Ion Engine > --- PROPULSION ------- Wheel Wheel > --- UTILITY ---------- Improved Terrain Scanner Seismic Analyzer > --- WEAPON ----------- Small Laser Light Assault Rifle > --- INVENTORY -------- Light Ion Engine Wheel Mining Laser Mining Laser [Rating: 8] Favorites ----------- Power Ion Engine Engine Ion Engine Propulsion Wheel Wheel Wheel Utility Seismic Analyzer Device Improved Terrain Scanner Processor Seismic Analyzer Weapon Light Assault Rifle Energy Gun Small Laser Ballistic Gun Light Assault Rifle Special Weapon Mining Laser Build | -11 -10 ------- Run | Scr Mat Slots Evolved . | . . Power . | . . Propulsion . | . . Utility . | . . Weapon . | . . Parts Attached 12 | 12 . Power 2 | 2 . Engine 2 | 2 . Core . | . . Reactor . | . . Propulsion 4 | 4 . Treads . | . . Leg . | . . Wheel 4 | 4 . Hover . | . . Flight . | . . Utility 2 | 2 . Device 1 | 1 . Storage . | . . Processor 1 | 1 . Hackware . | . . Protection . | . . Artifact . | . . Weapon 4 | 4 . Energy Gun 1 | 1 . Energy Cannon . | . . Ballistic Gun 1 | 1 . Ballistic Cannon . | . . Launcher . | . . Special Weapon 2 | 2 . Impact Weapon . | . . Slashing Weapon . | . . Piercing Weapon . | . . Special Melee Weapon . | . . Unidentified Prototypes . | . . Parts Lost 6 | . 6 Power 1 | . 1 Propulsion 1 | . 1 Utility 2 | . 2 Weapon 2 | . 2 Highest Loss Streak 6 | . 6 Average Slot Usage (%) 100 | . 100 Engine 14 | . 14 Wheel 28 | . 28 Device 14 | . 14 Processor 14 | . 14 Special Weapon 28 | . 28 Naked Turns . | . . Heaviest Build 8 | 8 8 Greatest Support 26 | 26 20 Greatest Overweight (x) . | . . Average Overweight (x) . | . . Largest Inventory Capacity 4 | 4 4 Average Capacity 4 | 4 4 Most Carried 4 | 4 3 Average Carried 3 | 3 2 Final Capacity 4 | 4 4 Final Carried 3 | 2 3 Class Distribution -------------------- 100% | Scavenger-Mutant Dominant Class ---------------- Scavenger-Mutant | -10/Materials Resources | -11 -10 ----------- Run | Scr Mat Matter Collected 347 | 347 . Remotely . | . . Salvage Created 223 | 223 . Parts 26 | 26 . Haulers Intercepted . | . . Recyclers Shooed . | . . Parts Field Recycled . | . . Retrieved Matter . | . . Parts Self-Destructed . | . . Prevented . | . . Kills | -11 -10 ------- Run | Scr Mat Combat Hostiles Destroyed . | . . Classes Destroyed 3 | 3 . Worker 2 | 2 . Tunneler 6 | 6 . Recycler 1 | 1 . Best Kill Streak 6 | 6 . Combat Bots Only . | . . Max Kills in Single Turn 1 | 1 . Gunslinging . | . . Exploded . | . . Melee . | . . Uniques/NPCs Destroyed . | . . Combat | -11 -10 -------- Run | Scr Mat Damage Taken 726 | . 726 Core 308 | . 308 Absorbed by Shields . | . . Core Remaining (%) 100 | 100 . Volleys Fired 57 | 49 8 Largest 2 | 2 2 Hottest 200 | 200 200 Shots Fired 113 | 97 16 Gun 53 | 53 . Cannon . | . . Launcher . | . . Special 60 | 44 16 Kinetic 27 | 27 . Thermal 86 | 70 16 Explosive . | . . Electromagnetic . | . . Robot Hit Streak 8 | 8 2 Robot Miss Streak 2 | 2 1 Penetration Max . | . . Secondary Targets . | . . Shots Hit Robots 35 | 32 3 Core Hits 16 | 16 . Critical Hits . | . . Critical Kills . | . . Critical Parts Destroyed . | . . Melee Attacks . | . . Impact . | . . Slashing . | . . Piercing . | . . Sneak Attacks . | . . Combat Hostiles . | . . Follow-up Attacks . | . . Damage Inflicted 350 | 302 48 Guns 302 | 302 . Cannons . | . . Explosions . | . . Melee . | . . Ramming . | . . Kinetic 181 | 181 . Thermal 169 | 121 48 Explosive . | . . Electromagnetic . | . . Impact . | . . Slashing . | . . Piercing . | . . Highest Corruption 9 | . 9 Average Corruption 9 | . 9 Corruption Purged . | . . Overload Shots . | . . Overflow Damage 8 | . 8 Projectiles 8 | . 8 Explosions . | . . Melee . | . . Knockbacks . | . . Impact . | . . Kinetic . | . . Secondary . | . . Self-Inflicted Damage 149 | . 149 Shots 2 | . 2 Rammed . | . . Targets Rammed . | . . Kicked . | . . Crushed . | . . Highest Temperature 336 | 336 232 Average Temperature 92 | 94 83 Received Heat Transfer . | . . Effects 2 | 1 1 Energy Bleed 2 | 1 1 Siege Activations . | . . Robots Corrupted . | . . Combat Hostiles . | . . Parts Fried . | . . Impact Corruptions . | . . Robots Melted . | . . Combat Hostiles . | . . Parts Melted . | . . Heat Transferred 375 | 275 100 Parts Sabotaged . | . . Parts Stolen . | . . Parts Stripped . | . . Power Chain Reactions . | . . Missiles Intercepted . | . . Alert | -11 -10 ------- Run | Scr Mat Peak Influence 45 | 45 45 Average Influence 8 | 6 39 Maximum Alert Level . | . . Low Security (%) 100 | 100 100 Level 1 . | . . Level 2 . | . . Level 3 . | . . Level 4 . | . . Level 5 . | . . High Security . | . . Max Security . | . . Squads Dispatched 1 | . 1 Investigation . | . . Extermination . | . . Reinforcement 1 | . 1 Assault . | . . Garrison . | . . Intercept . | . . Construction Impeded . | . . Haulers Reinforced . | . . Stealth | -11 -10 --------- Run | Scr Mat Distress Signals . | . . Communications Jammed . | . . Distress Signals . | . . Times Spotted 3 | . 3 Peak Tracking Total 1 | . 1 Tactical Retreats . | . . Traps | -11 -10 ------- Run | Scr Mat Traps Triggered . | . . Indirectly . | . . Trap Hack Attempts . | . . Triggered . | . . Disarmed . | . . Reprogrammed . | . . Reused . | . . Traps Extracted . | . . Installed . | . . Triggered . | . . Machines | -11 -10 ---------- Run | Scr Mat Machines Disabled 3 | . 3 Max in Single Turn 3 | . 3 Machines Sabotaged . | . . Garrisons Compromised . | . . Overloaded Fab Kills . | . . Fab Network Shutdowns . | . . Hacking | -11 -10 --------- Run | Scr Mat Machines Accessed . | . . Terminals . | . . Fabricators . | . . Repair Stations . | . . Recycling Units . | . . Scanalyzers . | . . Garrison Access . | . . Total Hacks . | . . Successful . | . . Failed . | . . Catastrophic . | . . Database Lockouts . | . . Manual . | . . Terminals . | . . Fabricators . | . . Repair Stations . | . . Recycling Units . | . . Scanalyzers . | . . Garrison Access . | . . Terminal Hacks . | . . Fabricator Hacks . | . . Repair Station Hacks . | . . Recycling Unit Hacks . | . . Scanalyzer . | . . Garrison Access Hacks . | . . Unauthorized Hacks . | . . Terminals . | . . Fabricators . | . . Repair Stations . | . . Recycling Units . | . . Scanalyzers . | . . Garrison Access . | . . Data Cores Recovered . | . . Used . | . . Hacking Detections . | . . Full Trace Events . | . . Feedback Events . | . . Feedback Blocked . | . . Robot Schematics Acquired . | . . Robots Built . | . . Matter . | . . Time . | . . Total Robot Build Rating . | . . Part Schematics Acquired . | . . Parts Built . | . . Matter . | . . Time . | . . Total Part Build Rating . | . . Parts Repaired . | . . Time . | . . Parts Recycled . | . . Recycled Matter . | . . Retrieved Matter . | . . Retrieved Components . | . . Parts Scanalyzed . | . . Part Schematics Acquired . | . . Parts Damaged . | . . Bothacking | -11 -10 ------------ Run | Scr Mat Used RIF Installer . | . . Robots Hacked . | . . Non-combat . | . . Combat . | . . Robot Hacks Applied . | . . Relay Couplers Released . | . . Robots Rewired . | . . Allies Hacked . | . . Hacks Repelled . | . . Allies | -11 -10 -------- Run | Scr Mat Total Allies . | . . Largest Group . | . . Highest-Rated Group . | . . Highest-Rated Ally . | . . Total Orders . | . . Ally Attacks . | . . Total Damage . | . . Kills . | . . Allies Corrupted . | . . Allies Melted . | . . Intel | -11 -10 ------- Run | Scr Mat Robot Analysis Total . | . . Derelict Logs Recovered . | . . Drone Launches . | . . Drone Recoveries . | . . Exploration | -11 -10 ------------- Run | Scr Mat Turns Passed 1994 | 1911 83 Spaces Moved 341 | 300 41 Core 5 | 5 . Treads . | . . Legs . | . . Wheels 336 | 295 41 Hover . | . . Flight . | . . Fastest Speed 50 | 50 80 Average Speed 80 | 80 80 Slowest Speed 100 | 100 80 Overloaded Moves . | . . Propulsion Burnouts . | . . Robots Hopped . | . . Cave-ins Triggered 2 | . 2 Exploration Rate (%) 16 | 18 15 Regions Visited 1 Branch Regions . Pre-discovered Areas . | . . Known Exits Taken . | . . Unknown Exits Taken 1 | 1 . Scrap Searched . | . . Spaces Dug 6 | 2 4 Terrain Destroyed 44 | 6 38 Melee . | . . Projectile 11 | 6 5 AOE 33 | . 33 Actions | -11 -10 --------- Run | Scr Mat Total 1840 | 1790 50 Wait 1421 | 1421 . Move 340 | 299 41 Hop . | . . Pick Up 5 | 4 1 Fast Attach 7 | 7 . Attach 2 | 2 . Detach . | . . Swap 3 | 3 . Drop 5 | 5 . Fire 57 | 49 8 Melee . | . . Ram . | . . Kick . | . . Crush . | . . Escape Stasis . | . . Rewire . | . . Trap . | . . Miscellaneous . | . . Route ------- -11/Scrapyard -10/Materials History --------- Turn | Location | Event 16 | -11/Scrapyard | Discovered new exit (range 15) 1912 | -11/Scrapyard | Entered Materials 1913 | -10/Materials | Build established: Scavenger-Mutant 1994 | -10/Materials | Crushed by falling debris 1994 | -10/Materials | Core integrity fell below 50% 1994 | -10/Materials | Core integrity fell below 20% 1996 | -10/Materials | Crushed by falling debris 1996 | -10/Materials | Smashed by cave-in Last Messages --------------- O-16 Technician: "IFF HANDSHAKE FAILED. SECURING TERMINAL." K-01 Serf collects debris. ALERT: Hostiles spotted, dispatching reinforcements to Terminal M007. Overheating: Energy bleed (-24). The unstable cave ceiling collapses. Crushed by falling debris. Seismic Analyzer destroyed. System corrupted by crushing effect (+2). Imp. Terrain Scanner destroyed. System corrupted by crushing effect (+3). Wheel destroyed. System corrupted by crushing effect (+4). The unstable cave ceiling collapses. Crushed by falling debris. Ion Engine destroyed. System corrupted by crushing effect (+2). Mining Laser destroyed. System corrupted by crushing effect (+4). Mining Laser destroyed. System corrupted by crushing effect (+4). Map ----- +----------------------------------------------------+ | | | | | | | | | | | | | | | ????????????????????????????????????????#????????? | | ?????????????????????????????????????????????????? | | ??????????????????????##??#?????#???????#????????? | | ????????????????????????????#???#????????????????? | | ???????????????????????#?????#?#?#???????#???????? | | ????????????????????? ??#?##???#???#??#??????????? | | ???????????????????? ? ????#?#?##????##?#?????#??? | | ?????????????????????????#??????#?#???#???#??????? | | ????????????????#???? ???#??#????????##??????????? | | ??????????????? ???# ????##?#????##?#??????#?????? | | ?????????????????????????############?#??#???????? | | ????????????????#??# ?????# ###??#?####### | | ?????????????????### ##?# ###?#??#!!| | | ???????????????????# ##?# #?#????#!!| | | ???????????? ??????# ""?# """ """ ########! | | ????????????????#??# ""## """ """ # # | | ???????????????????# T"#; """ """ # """ | | ??????????????#?#??#m "";# # """ | | ????????????#??????# ""@; # """ | | ?????????????#?????# #########+#### """ | | ????????????????? # """ ! | | ???????????? ???? + | | ????????????????? # !! | | ??????????????#???+############### # ! | | ????????????????? ?? ????????### # " | | ?????????????????????? ???? ? ?? + # T" | | ??????????????? ???? ?? ? ?? # #! ""# # # | | ??????????????#???? ????? ?? ????# # ####### | | ????????????????? ? ????# ? ????+ ######+#??#### | | ????????????????? ??#??????? ?# ##???#??#????? | | ??????????????????? ???#?????? ??# #????????????? | | ????????????????????? ?? ???????+ ????? ??? ?? | | ???????????????????????#?????????## #????#???????? | | ????????????????????????#? ???????? #??#????????? | | ????????????????????????????#?????? ?????????????? | | ???????????????????????????????????+#????????????? | | ????????????????????????????????????#????????????? | | ?????????????????????????????????????????????????? | | ?????????????????????????????????????????????????? | | ?????????????????????????????????????????????????? | | ?????????????????????????????????????????????????? | | ?????????????????????????????????????????????????? | | ?????????????????????????????????????????????????? | +----------------------------------------------------+ Best States ------------- Heat Dissipation 25 Energy Generation 10 Energy Capacity 250 Matter Stores 300 Matter Capacity 300 Sight Range 16 Terrain Scan Range 16 Terrain Scan Density 60 Evasion (%) 44 Item Schematics ----------------- None Robot Schematics ------------------ None Fabricated ------------ Nothing Alien Tech Used ----------------- None Achievements -------------- None Challenges ------------ None Game ------ Seed MissileMetafieldImmobilizer Manual? 0 Play Time 00:05:04 Cumulative 27.4 hours Start 2020.07.10 @ 08:36:25 End 2020.07.10 @ 08:41:00 Sessions 1 Manual Loads 0 Difficulty Rogue Special Mode None Game No. 22 Rogue 22 Adventurer 0 Explorer 0 Win Type - Total 0 Types 0/0/0/0/0/0/0 Lore% 41 Gallery% 34 Achievement% 30 Wizard Run 0 Options --------- ASCII 0 Keyboard 0 Movement Numpad Keybinds 0 Fullscreen 2 Font 18/TerminusBold Map View 76x50 Tactical HUD 0 Map Filters NONE Filters NONE Steam 1 RUN: 5b8e2d72-cb4c-4c17-a279-3f4a6a5679e3